[Event "35th European Club Cup 2019"]
[Site "Ulcinj"]
[Date "2019.11.16"]
[Round "7.15"]
[White "Gibicar, Danijel"]
[Black "Brunner, Lucas"]
[Result "1/2-1/2"]
[ECO "B72"]
[WhiteElo "2229"]
[BlackElo "2441"]
[Annotator "NA"]
[PlyCount "163"]
[EventDate "2019.11.10"]
[EventType "team-tourn"]
[EventCountry "MNE"]
[SourceTitle "playchess.com"]
[Source "ChessBase"]
[SourceQuality "1"]
[WhiteTeam "De Sprenger Echternach"]
[BlackTeam "Zurich SG"]
[TimeControl "40/5400+30:1800+30"]

1. e4 {[%emt 0:00:00]} c5 {[%emt 0:00:00]} 2. Nf3 {[%emt 0:00:08]} Nc6 {[%emt 0:00:00]} 3. d4 {[%emt 0:00:10]} cxd4 {[%emt 0:00:07]} 4. Nxd4 {[%emt 0:00:06]} g6 {[%emt 0:00:09]} 5. Be2 {[%emt 0:01:34]} Bg7 {[%emt 0:00:19]} 6. Nb3 {[%emt 0:00:14]} Nf6 {[%emt 0:01:45]} 7. Nc3 {[%emt 0:00:21]} d6 {[%emt 0:02:37]} 8. Be3 {[%emt 0:01:05]} O-O {[%emt 0:01:53]} 9. f4 {[%emt 0:00:23]} a5 {[%emt 0:04:26]} 10. a4 {[%emt 0:01:17]} Be6 {[%emt 0:01:48]} 11. O-O {[%emt 0:02:06]} Bxb3 {[%emt 0:08:03]} 12. cxb3 {[%emt 0:01:28]} e6 {[%emt 0:03:09]} 13. Bf3 {[%emt 0:14:07]} Qe7 {[%emt 0:10:52]} 14. Qe1 {[%emt 0:21:47]} d5 {[%emt 0:04:20]} 15. Bf2 {[%emt 0:29:38]} dxe4 {[%emt 0:02:37]} 16. Nxe4 {[%emt 0:02:37]} Nxe4 {[%emt 0:00:42]} 17. Qxe4 {[%emt 0:00:45]} Rfd8 {[%emt 0:06:33]} 18. Rfd1 {[%emt 0:02:34]} Bxb2 {[%emt 0:04:00]} 19. Rab1 {[%emt 0:00:42]} Qf6 {[%emt 0:00:10]} 20. Kh1 {[%emt 0:08:28]} Rxd1+ {[%emt 0:13:30]} 21. Rxd1 {[%emt 0:00:17]} Rd8 {[%emt 0:00:11]} 22. Rxd8+ {[%emt 0:01:50]} Qxd8 {[%emt 0:00:14]} 23. h3 Bd4 {[%emt 0:05:24]} 24. Bg3 {[%emt 0:04:24]} Bc5 {[%emt 0:04:57]} 25. Qc2 {[%emt 0:02:19]} Qd4 {[%emt 0:02:34]} 26. Qd1 {[%emt 0:00:18]} Qe3 {[%emt 0:00:54]} 27. Bh2 {[%emt 0:03:06]} Nd4 {[%emt 0:06:03]} 28. Bg1 {[%emt 0:00:58]} Qxb3 29. Bxd4 {[%emt 0:00:11]} Qxd1+ {[%emt 0:07:34]} 30. Bxd1 {[%emt 0:00:35]} Bxd4 {[%emt 0:01:44]} 31. Be2 {[%emt 0:01:07]} Bf2 {[%emt 0:00:14]} 32. g4 {[%emt 0:00:30]} Be3 {[%emt 0:00:30]} 33. f5 exf5 34. gxf5 {[%emt 0:00:08]} g5 {[%emt 0:02:00]} 35. Kg2 {[%emt 0:00:19]} f6 {[%emt 0:01:34]} 36. Kf3 {[%emt 0:00:53]} Bc5 {[%emt 0:02:35]} 37. Ke4 {[%emt 0:00:45]} Kf7 {[%emt 0:00:36]} 38. Kd5 {[%emt 0:00:24]} Bf2 {[%emt 0:00:12]} 39. Kd6 {[%emt 0:00:50]} Ke8 {[%emt 0:01:23]} 40. Kc7 {[%emt 0:00:00]} b6 {[%emt 0:00:00]} 41. Kd6 {[%emt 0:10:36]} Bc5+ {[%emt 0:01:54]} 42. Ke6 {[%emt 0:00:30]} Bd4 {[%emt 0:00:15]} 43. Kd5 {[%emt 0:01:46]} Bc3 {[%emt 0:00:38]} 44. Ke6 {[%emt 0:01:11]} Kd8 {[%emt 0:00:50]} 45. Kd6 {[%emt 0:00:52]} Kc8 {[%emt 0:00:48]} 46. Ba6+ {[%emt 0:01:36]} Kb8 {[%emt 0:02:11]} 47. Be2 {[%emt 0:00:10]} Kc8 {[%emt 0:02:39]} 48. Ba6+ {[%emt 0:00:09]} Kd8 {[%emt 0:00:07]} 49. Be2 {[%emt 0:00:09]} Bb2 {[%emt 0:00:26]} 50. Kc6 {[%emt 0:02:25]} Bd4 {[%emt 0:02:54]} 51. Kd5 {[%emt 0:00:19]} Bc3 {[%emt 0:01:03]} 52. Kc6 {[%emt 0:00:08]} Ke7 {[%emt 0:00:08]} 53. Kd5 {[%emt 0:02:43]} Kd7 {[%emt 0:01:26]} 54. Bb5+ {[%emt 0:00:26]} Kc7 {[%emt 0:00:09]} 55. Be2 {[%emt 0:01:12]} Be5 {[%emt 0:00:29]} 56. Bb5 {[%emt 0:08:48]} h5 {[%emt 0:03:29]} 57. Be2 {[%emt 0:00:58]} h4 {[%emt 0:00:08]} 58. Ke4 {[%emt 0:00:43]} g4 {[%emt 0:12:52]} 59. hxg4 {[%emt 0:00:26]} Bd6 {[%emt 0:01:36]} 60. Kf3 {[%emt 0:00:39]} h3 {[%emt 0:00:24]} 61. Bb5 {[%emt 0:02:55]} Be5 {[%emt 0:00:45]} 62. Bf1 {[%emt 0:01:15]} Kd6 {[%emt 0:02:23]} 63. Bb5 {[%emt 0:01:18]} Kd5 {[%emt 0:00:33]} 64. Bf1 {[%emt 0:00:30]} Kd4 {[%emt 0:00:46]} 65. Bb5 {[%emt 0:00:58]} Bd6 {[%emt 0:01:12]} 66. Bf1 {[%emt 0:00:22]} h2 {[%emt 0:00:23]} 67. Kg2 {[%emt 0:00:14]} Ke4 {[%emt 0:00:16]} 68. Bb5 {[%emt 0:01:09]} Ke3 {[%emt 0:01:18]} 69. Bc4 {[%emt 0:00:26]} Be5 {[%emt 0:01:21]} 70. Bb5 {[%emt 0:00:38]} Kd4 {[%emt 0:00:05]} 71. Bc6 {[%emt 0:00:27]} Kc5 {[%emt 0:00:05]} 72. Bb5 {[%emt 0:00:04]} Kd6 {[%emt 0:00:06]} 73. Bc4 {[%emt 0:00:34]} Ke7 {[%emt 0:00:05]} 74. Bb5 Kf8 {[%emt 0:00:05]} 75. Bc4 {[%emt 0:01:14]} Kg7 {[%emt 0:00:02]} 76. Be2 {[%emt 0:00:21]} Kh6 {[%emt 0:00:02]} 77. Bb5 {[%emt 0:00:12]} Kg5 {[%emt 0:00:02]} 78. Be2 {[%emt 0:00:13]} Kh4 {[%emt 0:00:20]} 79. Bd1 {[%emt 0:01:21]} b5 {[%emt 0:00:06]} 80. axb5 {[%emt 0:00:07]} Bc7 {[%emt 0:00:57]} 81. b6 {[%emt 0:00:51]} Bxb6 {[%emt 0:00:50]} 82. Kxh2 {[%emt 0:00:08]} 1/2-1/2